[Event "Late-Titled-Tuesday-Blitz-August-29-2023"]
[Site "Chess.com"]
[Date "2023.08.29"]
[Round "4"]
[White "azikom"]
[Black "NMJeevanK"]
[Result "1-0"]
[WhiteElo "2708"]
[BlackElo "2523"]
[TimeControl "180+1"]
[EndTime "14:37:44 PDT"]
[Termination "azikom won on time"]

1. Nf3 {[%clk 0:02:59.1]} 1... g6 {[%clk 0:02:59.1]} 2. c4 {[%clk 0:02:57.9]}
2... Bg7 {[%clk 0:02:59.4]} 3. Nc3 {[%clk 0:02:58.5]} 3... d6 {[%clk 0:02:55.7]}
4. d4 {[%clk 0:02:57.7]} 4... Nf6 {[%clk 0:02:52.7]} 5. e4 {[%clk 0:02:57.8]}
5... O-O {[%clk 0:02:50.9]} 6. Be2 {[%clk 0:02:58.2]} 6... Nc6 {[%clk
0:02:50.8]} 7. O-O {[%clk 0:02:58]} 7... e5 {[%clk 0:02:50.7]} 8. Be3 {[%clk
0:02:58.5]} 8... Qe8 {[%clk 0:02:27.6]} 9. d5 {[%clk 0:02:52.5]} 9... Ne7 {[%clk
0:02:23.7]} 10. Nd2 {[%clk 0:02:51.3]} 10... Bd7 {[%clk 0:02:20.6]} 11. c5
{[%clk 0:02:50.6]} 11... h5 {[%clk 0:02:02.8]} 12. cxd6 {[%clk 0:02:47]} 12...
cxd6 {[%clk 0:02:02.6]} 13. f3 {[%clk 0:02:47.3]} 13... h4 {[%clk 0:01:57.3]}
14. Nc4 {[%clk 0:02:46.4]} 14... h3 {[%clk 0:01:54.8]} 15. g3 {[%clk 0:02:44.7]}
15... Qb8 {[%clk 0:01:51.8]} 16. a4 {[%clk 0:02:43.5]} 16... Nh5 {[%clk
0:01:50.8]} 17. Qb3 {[%clk 0:02:37.7]} 17... b6 {[%clk 0:01:46.5]} 18. Qb4
{[%clk 0:02:37.1]} 18... Nc8 {[%clk 0:01:46.6]} 19. Nb5 {[%clk 0:02:34.5]} 19...
Bxb5 {[%clk 0:01:44]} 20. Qxb5 {[%clk 0:02:34.1]} 20... f5 {[%clk 0:01:43]} 21.
Rac1 {[%clk 0:02:31.1]} 21... f4 {[%clk 0:01:40.5]} 22. Bf2 {[%clk 0:02:29.9]}
22... fxg3 {[%clk 0:01:38.6]} 23. hxg3 {[%clk 0:02:30.8]} 23... Qb7 {[%clk
0:01:30.4]} 24. Kh2 {[%clk 0:02:28.1]} 24... Qe7 {[%clk 0:01:27.6]} 25. Kxh3
{[%clk 0:02:14.3]} 25... Qg5 {[%clk 0:01:17.4]} 26. Qd7 {[%clk 0:02:11]} 26...
Rf7 {[%clk 0:00:35.8]} 27. Qg4 {[%clk 0:02:09.7]} 27... Qd8 {[%clk 0:00:21.6]}
28. Kg2 {[%clk 0:02:07.4]} 28... Ne7 {[%clk 0:00:19.9]} 29. Rh1 {[%clk
0:02:03.1]} 29... Nf6 {[%clk 0:00:19.7]} 30. Qe6 {[%clk 0:02:01.2]} 30... Ne8
{[%clk 0:00:18.1]} 31. Be3 {[%clk 0:01:49.8]} 31... Rc8 {[%clk 0:00:17.1]} 32.
Bg5 {[%clk 0:01:48.6]} 32... Rc7 {[%clk 0:00:13.2]} 33. Ne3 {[%clk 0:01:45.8]}
33... Rxc1 {[%clk 0:00:10.8]} 34. Rxc1 {[%clk 0:01:44.8]} 34... Nc7 {[%clk
0:00:11.7]} 35. Qh3 {[%clk 0:01:41.7]} 35... Ne8 {[%clk 0:00:10.6]} 36. Ng4
{[%clk 0:01:35.5]} 36... Qa8 {[%clk 0:00:04.2]} 37. Bh6 {[%clk 0:01:26.4]} 37...
Nf6 {[%clk 0:00:03.1]} 38. Bxg7 {[%clk 0:01:24.4]} 38... Kxg7 {[%clk 0:00:04]}
39. Qh6+ {[%clk 0:01:22.2]} 39... Kg8 {[%clk 0:00:04.6]} 40. Rh1 {[%clk
0:01:20.1]} 40... Nh5 {[%clk 0:00:03.3]} 41. Qg5 {[%clk 0:01:14.3]} 41... Qf8
{[%clk 0:00:03.1]} 42. Rxh5 {[%clk 0:01:09]} 1-0

[Event "Late-Titled-Tuesday-Blitz-August-29-2023"]
[Site "Chess.com"]
[Date "2023.08.29"]
[Round "4"]
[White "Grebeniuk-S"]
[Black "geordie_derraugh"]
[Result "1-0"]
[WhiteElo "2614"]
[BlackElo "2405"]
[TimeControl "180+1"]
[EndTime "14:37:46 PDT"]
[Termination "Grebeniuk-S won on time"]

1. d4 {[%clk 0:03:00.9]} 1... Nf6 {[%clk 0:02:59.2]} 2. Nf3 {[%clk 0:03:00.9]}
2... d5 {[%clk 0:02:58]} 3. e3 {[%clk 0:02:59.8]} 3... g6 {[%clk 0:02:58]} 4.
Nbd2 {[%clk 0:02:59.2]} 4... Bg7 {[%clk 0:02:58]} 5. b3 {[%clk 0:02:58.9]} 5...
Ne4 {[%clk 0:02:55.3]} 6. Bb2 {[%clk 0:02:56.7]} 6... c5 {[%clk 0:02:55.4]} 7.
Bd3 {[%clk 0:02:54.3]} 7... Nxd2 {[%clk 0:02:35.2]} 8. Qxd2 {[%clk 0:02:54.1]}
8... Nc6 {[%clk 0:02:34.3]} 9. O-O {[%clk 0:02:51.7]} 9... Bg4 {[%clk
0:02:33.4]} 10. Ne5 {[%clk 0:02:51.9]} 10... Nxe5 {[%clk 0:02:31.6]} 11. dxe5
{[%clk 0:02:52.8]} 11... Qc7 {[%clk 0:02:31.7]} 12. Bb5+ {[%clk 0:02:43.7]}
12... Bd7 {[%clk 0:02:27.6]} 13. Bxd7+ {[%clk 0:02:38]} 13... Qxd7 {[%clk
0:02:28.5]} 14. Rad1 {[%clk 0:02:37.6]} 14... Rd8 {[%clk 0:02:23.5]} 15. c4
{[%clk 0:02:29.3]} 15... dxc4 {[%clk 0:02:17.8]} 16. Qe2 {[%clk 0:02:19.5]}
16... Qe6 {[%clk 0:02:04.2]} 17. Rxd8+ {[%clk 0:02:18.1]} 17... Kxd8 {[%clk
0:02:05.1]} 18. bxc4 {[%clk 0:02:13.2]} 18... Bxe5 {[%clk 0:01:49.1]} 19. Bxe5
{[%clk 0:02:13.1]} 19... Qxe5 {[%clk 0:01:49.2]} 20. Qf3 {[%clk 0:02:14]} 20...
Kc8 {[%clk 0:01:15.2]} 21. Qxf7 {[%clk 0:02:13.6]} 21... Qf6 {[%clk 0:01:12.6]}
22. Qd5 {[%clk 0:02:12.2]} 22... Qd6 {[%clk 0:01:11.8]} 23. Qf7 {[%clk
0:02:08.4]} 23... Qf6 {[%clk 0:01:10.4]} 24. Qd5 {[%clk 0:02:08.4]} 24... Qd6
{[%clk 0:01:10.5]} 25. Qe4 {[%clk 0:02:08.8]} 25... Rd8 {[%clk 0:01:08.9]} 26.
h4 {[%clk 0:02:07.7]} 26... Rd7 {[%clk 0:01:05.2]} 27. h5 {[%clk 0:02:05.6]}
27... Qa6 {[%clk 0:00:51.2]} 28. Rc1 {[%clk 0:01:20.2]} 28... Qxa2 {[%clk
0:00:23.5]} 29. Qe5 {[%clk 0:01:14.7]} 29... Qa3 {[%clk 0:00:20.8]} 30. Ra1
{[%clk 0:01:11.5]} 30... Qb4 {[%clk 0:00:17]} 31. Rxa7 {[%clk 0:01:06.4]} 31...
Rd1+ {[%clk 0:00:08.1]} 32. Kh2 {[%clk 0:01:06.2]} 32... Kd7 {[%clk 0:00:07.5]}
33. h6 {[%clk 0:00:45.5]} 33... Rb1 {[%clk 0:00:05.4]} 34. Qd5+ {[%clk
0:00:44.3]} 34... Kc7 {[%clk 0:00:04.8]} 35. Ra8 {[%clk 0:00:43.8]} 35... Qxc4
{[%clk 0:00:04.2]} 36. Qxc4 {[%clk 0:00:43.3]} 1-0

[Event "Late-Titled-Tuesday-Blitz-August-29-2023"]
[Site "Chess.com"]
[Date "2023.08.29"]
[Round "4"]
[White "Eloist"]
[Black "Ncatt"]
[Result "0-1"]
[WhiteElo "2454"]
[BlackElo "2433"]
[TimeControl "180+1"]
[EndTime "14:37:49 PDT"]
[Termination "Ncatt won on time"]

1. e4 {[%clk 0:03:00.9]} 1... c5 {[%clk 0:02:59.9]} 2. Nf3 {[%clk 0:03:00.5]}
2... Nc6 {[%clk 0:02:59.2]} 3. Bb5 {[%clk 0:03:00.3]} 3... g6 {[%clk 0:02:58.6]}
4. Bxc6 {[%clk 0:03:00.2]} 4... bxc6 {[%clk 0:02:58.6]} 5. O-O {[%clk
0:02:58.5]} 5... Bg7 {[%clk 0:02:58.7]} 6. Re1 {[%clk 0:02:58.6]} 6... e5 {[%clk
0:02:58.8]} 7. c3 {[%clk 0:02:57.7]} 7... Ne7 {[%clk 0:02:56.7]} 8. d4 {[%clk
0:02:57.7]} 8... cxd4 {[%clk 0:02:57]} 9. cxd4 {[%clk 0:02:58.3]} 9... exd4
{[%clk 0:02:57.9]} 10. Nxd4 {[%clk 0:02:58.5]} 10... O-O {[%clk 0:02:58.8]} 11.
Nc3 {[%clk 0:02:58.4]} 11... Rb8 {[%clk 0:02:53.8]} 12. Rb1 {[%clk 0:02:51.8]}
12... h6 {[%clk 0:02:48.2]} 13. Bf4 {[%clk 0:02:51.3]} 13... Rb4 {[%clk
0:02:47.2]} 14. Nc2 {[%clk 0:02:44.7]} 14... Rb6 {[%clk 0:02:34.8]} 15. Qd2
{[%clk 0:02:41.9]} 15... Re8 {[%clk 0:02:33.6]} 16. Bxh6 {[%clk 0:02:39.7]}
16... d5 {[%clk 0:02:30.6]} 17. Bxg7 {[%clk 0:02:38.6]} 17... Kxg7 {[%clk
0:02:29.8]} 18. exd5 {[%clk 0:02:32.1]} 18... Nxd5 {[%clk 0:02:24.9]} 19. Rxe8
{[%clk 0:02:28.9]} 19... Qxe8 {[%clk 0:02:25.8]} 20. Nxd5 {[%clk 0:02:27.9]}
20... cxd5 {[%clk 0:02:26.7]} 21. Qxd5 {[%clk 0:02:24.2]} 21... Bf5 {[%clk
0:02:23.5]} 22. Re1 {[%clk 0:02:22.2]} 22... Qa4 {[%clk 0:01:51.9]} 23. Ne3
{[%clk 0:02:21.1]} 23... Be6 {[%clk 0:01:45.5]} 24. Qe5+ {[%clk 0:02:17.6]}
24... f6 {[%clk 0:01:45.4]} 25. Qc7+ {[%clk 0:02:15.1]} 25... Bf7 {[%clk
0:01:45]} 26. h4 {[%clk 0:01:58.1]} 26... Qxh4 {[%clk 0:01:34]} 27. b3 {[%clk
0:01:47.7]} 27... Ra6 {[%clk 0:01:26.8]} 28. Rd1 {[%clk 0:01:37.3]} 28... Rxa2
{[%clk 0:01:14.7]} 29. g3 {[%clk 0:01:36.9]} 29... Qe4 {[%clk 0:01:13.5]} 30.
Rd7 {[%clk 0:01:35.4]} 30... Ra1+ {[%clk 0:01:08.3]} 31. Nf1 {[%clk 0:01:30.9]}
31... Qe6 {[%clk 0:00:55.3]} 32. b4 {[%clk 0:01:26.6]} 32... a6 {[%clk
0:00:50.5]} 33. Rd6 {[%clk 0:01:21.6]} 33... Qc4 {[%clk 0:00:42]} 0-1

[Event "Late-Titled-Tuesday-Blitz-August-29-2023"]
[Site "Chess.com"]
[Date "2023.08.29"]
[Round "4"]
[White "nitpicker"]
[Black "Karttunen"]
[Result "1-0"]
[WhiteElo "2304"]
[BlackElo "2584"]
[TimeControl "180+1"]
[EndTime "14:37:51 PDT"]
[Termination "nitpicker won by resignation"]

1. d4 {[%clk 0:03:00.9]} 1... f5 {[%clk 0:02:58.6]} 2. c4 {[%clk 0:02:59.4]}
2... Nf6 {[%clk 0:02:58.5]} 3. Nf3 {[%clk 0:02:59.6]} 3... g6 {[%clk 0:02:49.5]}
4. Nc3 {[%clk 0:02:56.2]} 4... Bg7 {[%clk 0:02:47.5]} 5. g3 {[%clk 0:02:56]}
5... O-O {[%clk 0:02:47.2]} 6. Bg2 {[%clk 0:02:56.7]} 6... d6 {[%clk 0:02:47.4]}
7. O-O {[%clk 0:02:56.5]} 7... c6 {[%clk 0:02:45.8]} 8. Rb1 {[%clk 0:02:56.3]}
8... a5 {[%clk 0:02:45]} 9. b3 {[%clk 0:02:50.4]} 9... Ne4 {[%clk 0:02:36.7]}
10. Bb2 {[%clk 0:02:34.2]} 10... Na6 {[%clk 0:02:06.8]} 11. a3 {[%clk
0:02:33.8]} 11... Nc7 {[%clk 0:02:03]} 12. Qc2 {[%clk 0:02:32]} 12... Qe8 {[%clk
0:01:39]} 13. Rbc1 {[%clk 0:02:31.5]} 13... Nxc3 {[%clk 0:01:29.2]} 14. Bxc3
{[%clk 0:02:31.1]} 14... e5 {[%clk 0:01:26.8]} 15. dxe5 {[%clk 0:02:31.2]} 15...
dxe5 {[%clk 0:01:27.1]} 16. e4 {[%clk 0:02:22.6]} 16... Rf7 {[%clk 0:00:56.8]}
17. Rfe1 {[%clk 0:02:17.2]} 17... Re7 {[%clk 0:00:56.4]} 18. Qb2 {[%clk
0:02:10.1]} 18... fxe4 {[%clk 0:00:55]} 19. Rxe4 {[%clk 0:01:59.3]} 19... Bf5
{[%clk 0:00:55]} 20. Ree1 {[%clk 0:01:59.9]} 20... e4 {[%clk 0:00:52.9]} 21.
Bxg7 {[%clk 0:01:03.1]} 21... exf3 {[%clk 0:00:45.5]} 22. Rxe7 {[%clk 0:00:57]}
22... Qxe7 {[%clk 0:00:46.4]} 23. Bf6 {[%clk 0:00:49.8]} 23... Qe2 {[%clk
0:00:35]} 24. Bf1 {[%clk 0:00:49.5]} 24... Qxb2 {[%clk 0:00:32.1]} 25. Bxb2
{[%clk 0:00:50.4]} 25... Ne6 {[%clk 0:00:29.2]} 26. b4 {[%clk 0:00:50.1]} 26...
axb4 {[%clk 0:00:29.1]} 27. axb4 {[%clk 0:00:50.4]} 27... Ra2 {[%clk 0:00:29.8]}
28. Be5 {[%clk 0:00:46.5]} 28... Kf7 {[%clk 0:00:24.8]} 29. c5 {[%clk
0:00:46.2]} 29... Be4 {[%clk 0:00:24]} 30. Bc4 {[%clk 0:00:42.1]} 30... Bd5
{[%clk 0:00:24.2]} 31. Bxa2 {[%clk 0:00:40.2]} 31... Bxa2 {[%clk 0:00:25.1]} 32.
Ra1 {[%clk 0:00:35.5]} 32... Bc4 {[%clk 0:00:23.4]} 33. Ra7 {[%clk 0:00:32.8]}
33... Ba6 {[%clk 0:00:22.2]} 34. b5 {[%clk 0:00:32.3]} 34... cxb5 {[%clk
0:00:22.6]} 35. c6 {[%clk 0:00:32.6]} 35... Ke8 {[%clk 0:00:10.6]} 36. cxb7
{[%clk 0:00:30.5]} 36... Bxb7 {[%clk 0:00:11.2]} 37. Rxb7 {[%clk 0:00:29.8]} 1-0

[Event "Late-Titled-Tuesday-Blitz-August-29-2023"]
[Site "Chess.com"]
[Date "2023.08.29"]
[Round "4"]
[White "protectiago"]
[Black "Maili15"]
[Result "0-1"]
[WhiteElo "2098"]
[BlackElo "2342"]
[TimeControl "180+1"]
[EndTime "14:37:51 PDT"]
[Termination "Maili15 won on time"]

1. d4 {[%clk 0:02:59.3]} 1... Nf6 {[%clk 0:02:59]} 2. c4 {[%clk 0:02:59.3]} 2...
g6 {[%clk 0:02:59.4]} 3. Nc3 {[%clk 0:02:59.6]} 3... d5 {[%clk 0:02:59.7]} 4.
cxd5 {[%clk 0:02:58.5]} 4... Nxd5 {[%clk 0:02:59.7]} 5. e4 {[%clk 0:02:59.1]}
5... Nxc3 {[%clk 0:03:00]} 6. bxc3 {[%clk 0:02:59.1]} 6... Bg7 {[%clk
0:03:00.6]} 7. Nf3 {[%clk 0:02:59.8]} 7... c5 {[%clk 0:03:00.9]} 8. Be3 {[%clk
0:02:59.8]} 8... O-O {[%clk 0:02:59.1]} 9. Qd2 {[%clk 0:03:00.1]} 9... Nc6
{[%clk 0:02:59.1]} 10. Rc1 {[%clk 0:02:59.6]} 10... Bg4 {[%clk 0:02:58.3]} 11.
d5 {[%clk 0:02:54.1]} 11... Bxf3 {[%clk 0:02:57.7]} 12. gxf3 {[%clk 0:02:54]}
12... Ne5 {[%clk 0:02:57.8]} 13. Be2 {[%clk 0:02:50.1]} 13... e6 {[%clk
0:02:56.6]} 14. f4 {[%clk 0:02:48.5]} 14... Nd7 {[%clk 0:02:55.9]} 15. c4 {[%clk
0:02:47.8]} 15... exd5 {[%clk 0:02:51.8]} 16. cxd5 {[%clk 0:02:47.8]} 16... Rc8
{[%clk 0:02:51.7]} 17. Kf1 {[%clk 0:02:40]} 17... Qh4 {[%clk 0:02:47.8]} 18. Bf3
{[%clk 0:02:34.6]} 18... a6 {[%clk 0:02:34.3]} 19. e5 {[%clk 0:02:25.3]} 19...
c4 {[%clk 0:02:30.5]} 20. Qb4 {[%clk 0:02:06.8]} 20... b5 {[%clk 0:02:27.7]} 21.
a4 {[%clk 0:02:00.9]} 21... g5 {[%clk 0:02:21.1]} 22. Qe7 {[%clk 0:01:50.2]}
22... Rcd8 {[%clk 0:02:10.1]} 23. Rg1 {[%clk 0:01:30.3]} 23... Qh3+ {[%clk
0:01:40.4]} 24. Bg2 {[%clk 0:01:28.4]} 24... Qh5 {[%clk 0:01:39.3]} 25. e6
{[%clk 0:01:18]} 25... gxf4 {[%clk 0:01:29.3]} 26. Bd2 {[%clk 0:00:09.4]} 26...
Ne5 {[%clk 0:01:26]} 27. Be4 {[%clk 0:00:08.8]} 27... Qh3+ {[%clk 0:01:18.4]}
28. Bg2 {[%clk 0:00:08.4]} 28... Qd3+ {[%clk 0:01:17.2]} 29. Ke1 {[%clk
0:00:08.1]} 29... f3 {[%clk 0:01:15.6]} 30. Bf1 {[%clk 0:00:08]} 30... Qxd5
{[%clk 0:01:12.9]} 31. Bh6 {[%clk 0:00:06.2]} 31... Qe4+ {[%clk 0:01:09.1]} 32.
Be3 {[%clk 0:00:04.7]} 32... Nd3+ {[%clk 0:00:58.7]} 33. Bxd3 {[%clk 0:00:05]}
33... Qxd3 {[%clk 0:00:59.3]} 34. exf7+ {[%clk 0:00:03.7]} 34... Kh8 {[%clk
0:00:58.1]} 35. Bd2 {[%clk 0:00:02.6]} 35... Qxd2+ {[%clk 0:00:55.3]} 0-1

[Event "Late-Titled-Tuesday-Blitz-August-29-2023"]
[Site "Chess.com"]
[Date "2023.08.29"]
[Round "4"]
[White "ckgchess"]
[Black "GoltsevDmitry2000"]
[Result "0-1"]
[WhiteElo "2887"]
[BlackElo "2634"]
[TimeControl "180+1"]
[EndTime "14:37:52 PDT"]
[Termination "GoltsevDmitry2000 won by resignation"]

1. d4 {[%clk 0:03:00.9]} 1... e6 {[%clk 0:02:58.9]} 2. Nf3 {[%clk 0:03:01.2]}
2... Nf6 {[%clk 0:02:58.6]} 3. Bf4 {[%clk 0:03:01.2]} 3... b6 {[%clk 0:02:58.4]}
4. e3 {[%clk 0:02:59.7]} 4... Bb7 {[%clk 0:02:58.3]} 5. Nbd2 {[%clk 0:02:59.9]}
5... Be7 {[%clk 0:02:58.6]} 6. h3 {[%clk 0:02:59.8]} 6... O-O {[%clk 0:02:59.1]}
7. Bd3 {[%clk 0:02:59.9]} 7... d5 {[%clk 0:02:58.7]} 8. c3 {[%clk 0:02:57.5]}
8... Nbd7 {[%clk 0:02:57.2]} 9. O-O {[%clk 0:02:54.8]} 9... c5 {[%clk
0:02:53.9]} 10. a4 {[%clk 0:02:54.2]} 10... a6 {[%clk 0:02:52.4]} 11. Re1 {[%clk
0:02:52.9]} 11... c4 {[%clk 0:02:50.9]} 12. Bc2 {[%clk 0:02:38.4]} 12... b5
{[%clk 0:02:51.1]} 13. Ne5 {[%clk 0:02:36.7]} 13... Nxe5 {[%clk 0:02:41.3]} 14.
Bxe5 {[%clk 0:02:25.2]} 14... Nd7 {[%clk 0:02:39.2]} 15. Bg3 {[%clk 0:02:22.8]}
15... f5 {[%clk 0:02:36]} 16. Nf3 {[%clk 0:02:05.8]} 16... b4 {[%clk 0:02:27.8]}
17. Qd2 {[%clk 0:01:57.7]} 17... b3 {[%clk 0:02:26.2]} 18. Bd1 {[%clk
0:01:57.9]} 18... Nf6 {[%clk 0:02:25.3]} 19. Bh2 {[%clk 0:01:53.9]} 19... Ne4
{[%clk 0:02:25.2]} 20. Qe2 {[%clk 0:01:52]} 20... Bf6 {[%clk 0:02:24.5]} 21. Ne5
{[%clk 0:01:50.7]} 21... a5 {[%clk 0:02:18.5]} 22. f3 {[%clk 0:01:50.2]} 22...
Ng5 {[%clk 0:02:18.4]} 23. Qf2 {[%clk 0:01:44]} 23... Nf7 {[%clk 0:02:17.8]} 24.
Nxf7 {[%clk 0:01:17.2]} 24... Rxf7 {[%clk 0:02:18.7]} 25. Be2 {[%clk 0:01:18.1]}
25... Bc6 {[%clk 0:02:14.9]} 26. Qg3 {[%clk 0:01:10]} 26... Qd7 {[%clk
0:02:14.6]} 27. e4 {[%clk 0:01:05.8]} 27... Bxa4 {[%clk 0:02:10.6]} 28. exd5
{[%clk 0:00:48.5]} 28... exd5 {[%clk 0:02:10.3]} 29. Qf2 {[%clk 0:00:38.8]}
29... Bc6 {[%clk 0:02:09.2]} 30. Be5 {[%clk 0:00:36.5]} 30... a4 {[%clk
0:02:08.5]} 31. f4 {[%clk 0:00:33.1]} 31... Be7 {[%clk 0:02:06]} 32. Bf3 {[%clk
0:00:31.8]} 32... a3 {[%clk 0:02:02.6]} 33. bxa3 {[%clk 0:00:32.7]} 33... Rxa3
{[%clk 0:02:03.1]} 34. Rab1 {[%clk 0:00:31]} 34... Bf8 {[%clk 0:02:00.4]} 35.
Re2 {[%clk 0:00:29.6]} 35... Qa7 {[%clk 0:01:58.2]} 36. Kh2 {[%clk 0:00:27.8]}
36... Ra2 {[%clk 0:01:56.7]} 37. Rxa2 {[%clk 0:00:14.6]} 37... Qxa2 {[%clk
0:01:57.6]} 38. Rb2 {[%clk 0:00:13.7]} 38... Qa1 {[%clk 0:01:57.8]} 39. Re2
{[%clk 0:00:11.9]} 39... Ba3 {[%clk 0:01:56]} 40. Qg3 {[%clk 0:00:12.4]} 40...
b2 {[%clk 0:01:52.7]} 41. Bh5 {[%clk 0:00:06.5]} 41... Re7 {[%clk 0:01:50.9]}
42. Bf6 {[%clk 0:00:01.2]} 42... b1=Q {[%clk 0:01:50.5]} 43. Qg5 {[%clk
0:00:01.1]} 43... h6 {[%clk 0:01:26.9]} 44. Qg6 {[%clk 0:00:01.3]} 44... Be8
{[%clk 0:01:14.5]} 45. Qxe8+ {[%clk 0:00:01.3]} 45... Rxe8 {[%clk 0:01:12.7]}
46. Rxe8+ {[%clk 0:00:02.2]} 46... Kh7 {[%clk 0:01:10.7]} 47. Be5 {[%clk
0:00:02.8]} 47... Qh1+ {[%clk 0:01:09.7]} 0-1

[Event "Late-Titled-Tuesday-Blitz-August-29-2023"]
[Site "Chess.com"]
[Date "2023.08.29"]
[Round "4"]
[White "IamSchrodingersCat"]
[Black "Arystanner"]
[Result "0-1"]
[WhiteElo "2559"]
[BlackElo "2857"]
[TimeControl "180+1"]
[EndTime "14:37:52 PDT"]
[Termination "Arystanner won on time"]

1. e4 {[%clk 0:03:00.9]} 1... c5 {[%clk 0:02:57.6]} 2. Nf3 {[%clk 0:03:00.8]}
2... d6 {[%clk 0:02:58]} 3. d4 {[%clk 0:03:00.8]} 3... cxd4 {[%clk 0:02:58.5]}
4. Nxd4 {[%clk 0:03:01.7]} 4... Nf6 {[%clk 0:02:58.4]} 5. Nc3 {[%clk 0:03:02.2]}
5... a6 {[%clk 0:02:58.7]} 6. Be2 {[%clk 0:03:02.6]} 6... e5 {[%clk 0:02:58.5]}
7. Nb3 {[%clk 0:03:02.8]} 7... Be6 {[%clk 0:02:59]} 8. f4 {[%clk 0:03:00.5]}
8... Nc6 {[%clk 0:02:56.9]} 9. f5 {[%clk 0:02:53.3]} 9... Bxb3 {[%clk
0:02:56.9]} 10. axb3 {[%clk 0:02:54.2]} 10... Nd4 {[%clk 0:02:57.3]} 11. Bf3
{[%clk 0:02:49.4]} 11... d5 {[%clk 0:02:55.1]} 12. Nxd5 {[%clk 0:02:43]} 12...
Nxd5 {[%clk 0:02:50.6]} 13. exd5 {[%clk 0:02:43.9]} 13... Bc5 {[%clk 0:02:49.3]}
14. c3 {[%clk 0:02:26.9]} 14... Nxf3+ {[%clk 0:02:48.2]} 15. Qxf3 {[%clk
0:02:27.8]} 15... O-O {[%clk 0:02:48.4]} 16. b4 {[%clk 0:02:13.6]} 16... e4
{[%clk 0:02:47.4]} 17. Qg4 {[%clk 0:01:57.1]} 17... Bb6 {[%clk 0:02:45.7]} 18.
Bh6 {[%clk 0:01:38.7]} 18... Qf6 {[%clk 0:02:45.3]} 19. Bg5 {[%clk 0:01:38.9]}
19... Qe5 {[%clk 0:02:44.9]} 20. O-O-O {[%clk 0:01:25.2]} 20... a5 {[%clk
0:02:18.2]} 21. b5 {[%clk 0:01:07.3]} 21... a4 {[%clk 0:01:59.6]} 22. Bf4 {[%clk
0:01:03.7]} 22... Qf6 {[%clk 0:01:58.5]} 23. Qg5 {[%clk 0:01:02]} 23... Qxg5
{[%clk 0:01:47.4]} 24. Bxg5 {[%clk 0:01:02.9]} 24... f6 {[%clk 0:01:47.8]} 25.
Bf4 {[%clk 0:01:00]} 25... a3 {[%clk 0:01:21.7]} 26. bxa3 {[%clk 0:00:48.2]}
26... Rxa3 {[%clk 0:01:18.9]} 27. Kb2 {[%clk 0:00:32.7]} 27... Ra5 {[%clk
0:01:18.4]} 28. d6 {[%clk 0:00:22.7]} 28... Rxb5+ {[%clk 0:01:13.6]} 29. Kc2
{[%clk 0:00:22.9]} 29... Rxf5 {[%clk 0:01:14.2]} 30. Bg3 {[%clk 0:00:15]} 30...
Ra5 {[%clk 0:01:09.5]} 31. Rb1 {[%clk 0:00:14.5]} 31... Ra6 {[%clk 0:01:06.7]}
32. Rb2 {[%clk 0:00:14]} 32... f5 {[%clk 0:01:04.7]} 33. Bf4 {[%clk 0:00:13.2]}
33... Bc5 {[%clk 0:01:02.1]} 34. Rg1 {[%clk 0:00:12.1]} 34... Bxd6 {[%clk
0:01:01.2]} 35. Bxd6 {[%clk 0:00:11.1]} 35... Rxd6 {[%clk 0:01:02.1]} 36. Rxb7
{[%clk 0:00:11.5]} 36... f4 {[%clk 0:01:01.4]} 37. Re1 {[%clk 0:00:09.1]} 37...
e3 {[%clk 0:01:01.8]} 38. Re2 {[%clk 0:00:08]} 38... Rfd8 {[%clk 0:01:02.1]} 39.
Rb4 {[%clk 0:00:06]} 39... g5 {[%clk 0:01:01.7]} 40. h4 {[%clk 0:00:03.3]} 40...
Rd2+ {[%clk 0:01:00.7]} 41. Rxd2 {[%clk 0:00:03.3]} 41... Rxd2+ {[%clk
0:01:01.6]} 42. Kc1 {[%clk 0:00:03.6]} 42... Rxg2 {[%clk 0:01:01]} 43. hxg5
{[%clk 0:00:03.4]} 43... Rg1+ {[%clk 0:01:01.3]} 44. Kc2 {[%clk 0:00:03.5]}
44... e2 {[%clk 0:01:01.9]} 0-1

[Event "Late-Titled-Tuesday-Blitz-August-29-2023"]
[Site "Chess.com"]
[Date "2023.08.29"]
[Round "4"]
[White "FredddieCroderg"]
[Black "powermove"]
[Result "1-0"]
[WhiteElo "2316"]
[BlackElo "2055"]
[TimeControl "180+1"]
[EndTime "14:37:54 PDT"]
[Termination "FredddieCroderg won by resignation"]

1. e3 {[%clk 0:03:00.9]} 1... c5 {[%clk 0:02:43.5]} 2. d4 {[%clk 0:03:00.4]}
2... cxd4 {[%clk 0:02:36.6]} 3. exd4 {[%clk 0:02:59.2]} 3... Nf6 {[%clk
0:02:37.2]} 4. Bd3 {[%clk 0:02:58.6]} 4... g6 {[%clk 0:02:36.1]} 5. Nf3 {[%clk
0:02:57.9]} 5... Bg7 {[%clk 0:02:35.1]} 6. O-O {[%clk 0:02:53.7]} 6... O-O
{[%clk 0:02:34.4]} 7. Re1 {[%clk 0:02:53.4]} 7... d6 {[%clk 0:02:34.5]} 8. c3
{[%clk 0:02:44.8]} 8... Bg4 {[%clk 0:02:26.1]} 9. Nbd2 {[%clk 0:02:44.8]} 9...
Nc6 {[%clk 0:02:24.4]} 10. h3 {[%clk 0:02:44.8]} 10... Bd7 {[%clk 0:02:22.6]}
11. Bf1 {[%clk 0:02:44.2]} 11... Re8 {[%clk 0:02:18.9]} 12. Nb3 {[%clk 0:02:43]}
12... a5 {[%clk 0:02:12]} 13. a4 {[%clk 0:02:41.8]} 13... Be6 {[%clk 0:02:05.3]}
14. Nbd2 {[%clk 0:02:40.6]} 14... Rb8 {[%clk 0:01:53.1]} 15. Bb5 {[%clk
0:02:36.7]} 15... Bf5 {[%clk 0:01:37.8]} 16. Nf1 {[%clk 0:02:30.7]} 16... Rf8
{[%clk 0:01:29.4]} 17. Ng3 {[%clk 0:02:29.4]} 17... Bd7 {[%clk 0:01:28.5]} 18.
Bd2 {[%clk 0:02:23.1]} 18... Na7 {[%clk 0:01:19.5]} 19. Bf1 {[%clk 0:02:21.3]}
19... b5 {[%clk 0:01:16.9]} 20. axb5 {[%clk 0:02:20.4]} 20... Bxb5 {[%clk
0:01:15.2]} 21. Ne2 {[%clk 0:02:16.1]} 21... Ne4 {[%clk 0:01:10.3]} 22. Be3
{[%clk 0:02:14.1]} 22... d5 {[%clk 0:01:06.9]} 23. Ne5 {[%clk 0:02:08.8]} 23...
Nc6 {[%clk 0:01:04]} 24. Nd3 {[%clk 0:02:04]} 24... Ra8 {[%clk 0:00:48.4]} 25.
Ng3 {[%clk 0:01:50.9]} 25... Nxg3 {[%clk 0:00:47.5]} 26. fxg3 {[%clk 0:01:50.4]}
26... e5 {[%clk 0:00:34.1]} 27. dxe5 {[%clk 0:01:49.6]} 27... Nxe5 {[%clk
0:00:33]} 28. Nxe5 {[%clk 0:01:41.1]} 28... Bxf1 {[%clk 0:00:32.5]} 29. Nxf7
{[%clk 0:01:29.8]} 29... Rxf7 {[%clk 0:00:24]} 30. Rxf1 {[%clk 0:01:28.2]} 30...
Rxf1+ {[%clk 0:00:22.2]} 31. Qxf1 {[%clk 0:01:26.5]} 31... Qd6 {[%clk
0:00:20.8]} 32. Bf4 {[%clk 0:01:21.7]} 32... Qb6+ {[%clk 0:00:20.8]} 33. Qf2
{[%clk 0:01:19.1]} 33... Qxf2+ {[%clk 0:00:20.6]} 34. Kxf2 {[%clk 0:01:17.7]}
34... Rb8 {[%clk 0:00:21.3]} 35. Ra2 {[%clk 0:01:13]} 35... Rb5 {[%clk
0:00:20.5]} 36. Ke2 {[%clk 0:01:09.3]} 36... d4 {[%clk 0:00:19.9]} 37. c4 {[%clk
0:01:07.2]} 37... Rb3 {[%clk 0:00:20.1]} 38. c5 {[%clk 0:01:01.3]} 38... d3+
{[%clk 0:00:20.2]} 39. Kd2 {[%clk 0:01:00.9]} 39... Bxb2 {[%clk 0:00:20.6]} 40.
c6 {[%clk 0:00:59.1]} 40... Bd4 {[%clk 0:00:14.7]} 41. c7 {[%clk 0:00:57.4]}
41... Rc3 {[%clk 0:00:13.5]} 42. Rxa5 {[%clk 0:00:52.5]} 42... Rc6 {[%clk
0:00:12.4]} 43. Ra8+ {[%clk 0:00:50.2]} 1-0